{"text_format":"3","workbook":"xlsx","n_sheets":5,"sheets":["Zostava predaja produktu","Historické údaje","Cenník","Kontingenčná tabuľka cien","Tabuľka trendov predaja"],"not_rendered":{"charts":2,"defined_names":6,"pivot_tables":2},"read":"whole","date_system":"1900"}

{"sheet":"Zostava predaja produktu","index":0,"n_rows":20,"n_cols":2,"rows_kept":20}
[null,"Zostava predaja produktu"]
{"$rows_empty":18}
[null,"Produkty"]

{"sheet":"Historické údaje","index":1,"n_rows":33,"n_cols":10,"rows_kept":33}
[null,"História ceny produktov a predaja"]
[]
[null,"Identifikácia produktu","Názov produktu","Cena k dátumu","Jednotková maloobchodná cena","Jednotková veľkoobchodná cena*","Počet predaných jednotiek (maloobchod)","Počet predaných jednotiek (veľkoobchod)","Celkový predaj (ks)","Celkový predaj (€)"]
[null,5,{"$f":"IFERROR(IF(tblPredaj[[#This Row],[Identifikácia produktu]]<>\"\",VLOOKUP(tblPredaj[Identifikácia produktu],tblProdukty[[Identifikácia produktu]:[Názov]],2,FALSE),\"\"),\"Neznáma identifikácia produktu\")","v":"Šortky"},"2012-01-01",20,{"v":20,"d":"20 €"},629,{"v":1254,"d":"1,254"},{"$f":"tblPredaj[[#This Row],[Počet predaných jednotiek (maloobchod)]]+tblPredaj[[#This Row],[Počet predaných jednotiek (veľkoobchod)]]","v":{"v":1883,"d":"1,883"}},{"$f":"tblPredaj[[#This Row],[Počet predaných jednotiek (maloobchod)]]*tblPredaj[[#This Row],[Jednotková maloobchodná cena]]+tblPredaj[[#This Row],[Počet predaných jednotiek (veľkoobchod)]]*tblPredaj[[#This Row],[Jednotková veľkoobchodná cena*]]","v":{"v":37660,"d":"37,660 €"}}]
[null,1,{"$f":"IFERROR(IF(tblPredaj[[#This Row],[Identifikácia produktu]]<>\"\",VLOOKUP(tblPredaj[Identifikácia produktu],tblProdukty[[Identifikácia produktu]:[Názov]],2,FALSE),\"\"),\"Neznáma identifikácia produktu\")","v":"Košele"},"2012-01-01",88,{"v":54,"d":"54 €"},734,{"v":1427,"d":"1,427"},{"$f":"tblPredaj[[#This Row],[Počet predaných jednotiek (maloobchod)]]+tblPredaj[[#This Row],[Počet predaných jednotiek (veľkoobchod)]]","v":{"v":2161,"d":"2,161"}},{"$f":"tblPredaj[[#This Row],[Počet predaných jednotiek (maloobchod)]]*tblPredaj[[#This Row],[Jednotková maloobchodná cena]]+tblPredaj[[#This Row],[Počet predaných jednotiek (veľkoobchod)]]*tblPredaj[[#This Row],[Jednotková veľkoobchodná cena*]]","v":{"v":141650,"d":"141,650 €"}}]
[null,2,{"$f":"IFERROR(IF(tblPredaj[[#This Row],[Identifikácia produktu]]<>\"\",VLOOKUP(tblPredaj[Identifikácia produktu],tblProdukty[[Identifikácia produktu]:[Názov]],2,FALSE),\"\"),\"Neznáma identifikácia produktu\")","v":"Sandále"},"2012-01-01",70,{"v":44,"d":"44 €"},744,{"v":1043,"d":"1,043"},{"$f":"tblPredaj[[#This Row],[Počet predaných jednotiek (maloobchod)]]+tblPredaj[[#This Row],[Počet predaných jednotiek (veľkoobchod)]]","v":{"v":1787,"d":"1,787"}},{"$f":"tblPredaj[[#This Row],[Počet predaných jednotiek (maloobchod)]]*tblPredaj[[#This Row],[Jednotková maloobchodná cena]]+tblPredaj[[#This Row],[Počet predaných jednotiek (veľkoobchod)]]*tblPredaj[[#This Row],[Jednotková veľkoobchodná cena*]]","v":{"v":97972,"d":"97,972 €"}}]
[null,3,{"$f":"IFERROR(IF(tblPredaj[[#This Row],[Identifikácia produktu]]<>\"\",VLOOKUP(tblPredaj[Identifikácia produktu],tblProdukty[[Identifikácia produktu]:[Názov]],2,FALSE),\"\"),\"Neznáma identifikácia produktu\")","v":"Dáždniky"},"2012-01-01",63,{"v":44,"d":"44 €"},681,{"v":1523,"d":"1,523"},{"$f":"tblPredaj[[#This Row],[Počet predaných jednotiek (maloobchod)]]+tblPredaj[[#This Row],[Počet predaných jednotiek (veľkoobchod)]]","v":{"v":2204,"d":"2,204"}},{"$f":"tblPredaj[[#This Row],[Počet predaných jednotiek (maloobchod)]]*tblPredaj[[#This Row],[Jednotková maloobchodná cena]]+tblPredaj[[#This Row],[Počet predaných jednotiek (veľkoobchod)]]*tblPredaj[[#This Row],[Jednotková veľkoobchodná cena*]]","v":{"v":109915,"d":"109,915 €"}}]
[null,4,{"$f":"IFERROR(IF(tblPredaj[[#This Row],[Identifikácia produktu]]<>\"\",VLOOKUP(tblPredaj[Identifikácia produktu],tblProdukty[[Identifikácia produktu]:[Názov]],2,FALSE),\"\"),\"Neznáma identifikácia produktu\")","v":"Fľaše na vodu"},"2012-01-01",35,{"v":27,"d":"27 €"},602,{"v":1822,"d":"1,822"},{"$f":"tblPredaj[[#This Row],[Počet predaných jednotiek (maloobchod)]]+tblPredaj[[#This Row],[Počet predaných jednotiek (veľkoobchod)]]","v":{"v":2424,"d":"2,424"}},{"$f":"tblPredaj[[#This Row],[Počet predaných jednotiek (maloobchod)]]*tblPredaj[[#This Row],[Jednotková maloobchodná cena]]+tblPredaj[[#This Row],[Počet predaných jednotiek (veľkoobchod)]]*tblPredaj[[#This Row],[Jednotková veľkoobchodná cena*]]","v":{"v":70264,"d":"70,264 €"}}]
[null,1,{"$f":"IFERROR(IF(tblPredaj[[#This Row],[Identifikácia produktu]]<>\"\",VLOOKUP(tblPredaj[Identifikácia produktu],tblProdukty[[Identifikácia produktu]:[Názov]],2,FALSE),\"\"),\"Neznáma identifikácia produktu\")","v":"Košele"},"2012-02-01",55,{"v":44,"d":"44 €"},678,{"v":1515,"d":"1,515"},{"$f":"tblPredaj[[#This Row],[Počet predaných jednotiek (maloobchod)]]+tblPredaj[[#This Row],[Počet predaných jednotiek (veľkoobchod)]]","v":{"v":2193,"d":"2,193"}},{"$f":"tblPredaj[[#This Row],[Počet predaných jednotiek (maloobchod)]]*tblPredaj[[#This Row],[Jednotková maloobchodná cena]]+tblPredaj[[#This Row],[Počet predaných jednotiek (veľkoobchod)]]*tblPredaj[[#This Row],[Jednotková veľkoobchodná cena*]]","v":{"v":103950,"d":"103,950 €"}}]
[null,2,{"$f":"IFERROR(IF(tblPredaj[[#This Row],[Identifikácia produktu]]<>\"\",VLOOKUP(tblPredaj[Identifikácia produktu],tblProdukty[[Identifikácia produktu]:[Názov]],2,FALSE),\"\"),\"Neznáma identifikácia produktu\")","v":"Sandále"},"2012-02-01",83,{"v":54,"d":"54 €"},753,{"v":1005,"d":"1,005"},{"$f":"tblPredaj[[#This Row],[Počet predaných jednotiek (maloobchod)]]+tblPredaj[[#This Row],[Počet predaných jednotiek (veľkoobchod)]]","v":{"v":1758,"d":"1,758"}},{"$f":"tblPredaj[[#This Row],[Počet predaných jednotiek (maloobchod)]]*tblPredaj[[#This Row],[Jednotková maloobchodná cena]]+tblPredaj[[#This Row],[Počet predaných jednotiek (veľkoobchod)]]*tblPredaj[[#This Row],[Jednotková veľkoobchodná cena*]]","v":{"v":116769,"d":"116,769 €"}}]
[null,3,{"$f":"IFERROR(IF(tblPredaj[[#This Row],[Identifikácia produktu]]<>\"\",VLOOKUP(tblPredaj[Identifikácia produktu],tblProdukty[[Identifikácia produktu]:[Názov]],2,FALSE),\"\"),\"Neznáma identifikácia produktu\")","v":"Dáždniky"},"2012-02-01",34,{"v":34,"d":"34 €"},986,{"v":1069,"d":"1,069"},{"$f":"tblPredaj[[#This Row],[Počet predaných jednotiek (maloobchod)]]+tblPredaj[[#This Row],[Počet predaných jednotiek (veľkoobchod)]]","v":{"v":2055,"d":"2,055"}},{"$f":"tblPredaj[[#This Row],[Počet predaných jednotiek (maloobchod)]]*tblPredaj[[#This Row],[Jednotková maloobchodná cena]]+tblPredaj[[#This Row],[Počet predaných jednotiek (veľkoobchod)]]*tblPredaj[[#This Row],[Jednotková veľkoobchodná cena*]]","v":{"v":69870,"d":"69,870 €"}}]
[null,4,{"$f":"IFERROR(IF(tblPredaj[[#This Row],[Identifikácia produktu]]<>\"\",VLOOKUP(tblPredaj[Identifikácia produktu],tblProdukty[[Identifikácia produktu]:[Názov]],2,FALSE),\"\"),\"Neznáma identifikácia produktu\")","v":"Fľaše na vodu"},"2012-02-01",35,{"v":25,"d":"25 €"},848,{"v":1211,"d":"1,211"},{"$f":"tblPredaj[[#This Row],[Počet predaných jednotiek (maloobchod)]]+tblPredaj[[#This Row],[Počet predaných jednotiek (veľkoobchod)]]","v":{"v":2059,"d":"2,059"}},{"$f":"tblPredaj[[#This Row],[Počet predaných jednotiek (maloobchod)]]*tblPredaj[[#This Row],[Jednotková maloobchodná cena]]+tblPredaj[[#This Row],[Počet predaných jednotiek (veľkoobchod)]]*tblPredaj[[#This Row],[Jednotková veľkoobchodná cena*]]","v":{"v":59955,"d":"59,955 €"}}]
[null,5,{"$f":"IFERROR(IF(tblPredaj[[#This Row],[Identifikácia produktu]]<>\"\",VLOOKUP(tblPredaj[Identifikácia produktu],tblProdukty[[Identifikácia produktu]:[Názov]],2,FALSE),\"\"),\"Neznáma identifikácia produktu\")","v":"Šortky"},"2012-02-01",41,{"v":38,"d":"38 €"},980,{"v":1330,"d":"1,330"},{"$f":"tblPredaj[[#This Row],[Počet predaných jednotiek (maloobchod)]]+tblPredaj[[#This Row],[Počet predaných jednotiek (veľkoobchod)]]","v":{"v":2310,"d":"2,310"}},{"$f":"tblPredaj[[#This Row],[Počet predaných jednotiek (maloobchod)]]*tblPredaj[[#This Row],[Jednotková maloobchodná cena]]+tblPredaj[[#This Row],[Počet predaných jednotiek (veľkoobchod)]]*tblPredaj[[#This Row],[Jednotková veľkoobchodná cena*]]","v":{"v":90720,"d":"90,720 €"}}]
[null,1,{"$f":"IFERROR(IF(tblPredaj[[#This Row],[Identifikácia produktu]]<>\"\",VLOOKUP(tblPredaj[Identifikácia produktu],tblProdukty[[Identifikácia produktu]:[Názov]],2,FALSE),\"\"),\"Neznáma identifikácia produktu\")","v":"Košele"},"2012-02-29",27,{"v":18,"d":"18 €"},533,{"v":1936,"d":"1,936"},{"$f":"tblPredaj[[#This Row],[Počet predaných jednotiek (maloobchod)]]+tblPredaj[[#This Row],[Počet predaných jednotiek (veľkoobchod)]]","v":{"v":2469,"d":"2,469"}},{"$f":"tblPredaj[[#This Row],[Počet predaných jednotiek (maloobchod)]]*tblPredaj[[#This Row],[Jednotková maloobchodná cena]]+tblPredaj[[#This Row],[Počet predaných jednotiek (veľkoobchod)]]*tblPredaj[[#This Row],[Jednotková veľkoobchodná cena*]]","v":{"v":49239,"d":"49,239 €"}}]
[null,2,{"$f":"IFERROR(IF(tblPredaj[[#This Row],[Identifikácia produktu]]<>\"\",VLOOKUP(tblPredaj[Identifikácia produktu],tblProdukty[[Identifikácia produktu]:[Názov]],2,FALSE),\"\"),\"Neznáma identifikácia produktu\")","v":"Sandále"},"2012-02-29",38,{"v":28,"d":"28 €"},952,{"v":1512,"d":"1,512"},{"$f":"tblPredaj[[#This Row],[Počet predaných jednotiek (maloobchod)]]+tblPredaj[[#This Row],[Počet predaných jednotiek (veľkoobchod)]]","v":{"v":2464,"d":"2,464"}},{"$f":"tblPredaj[[#This Row],[Počet predaných jednotiek (maloobchod)]]*tblPredaj[[#This Row],[Jednotková maloobchodná cena]]+tblPredaj[[#This Row],[Počet predaných jednotiek (veľkoobchod)]]*tblPredaj[[#This Row],[Jednotková veľkoobchodná cena*]]","v":{"v":78512,"d":"78,512 €"}}]
[null,3,{"$f":"IFERROR(IF(tblPredaj[[#This Row],[Identifikácia produktu]]<>\"\",VLOOKUP(tblPredaj[Identifikácia produktu],tblProdukty[[Identifikácia produktu]:[Názov]],2,FALSE),\"\"),\"Neznáma identifikácia produktu\")","v":"Dáždniky"},"2012-02-29",92,{"v":92,"d":"92 €"},956,{"v":1266,"d":"1,266"},{"$f":"tblPredaj[[#This Row],[Počet predaných jednotiek (maloobchod)]]+tblPredaj[[#This Row],[Počet predaných jednotiek (veľkoobchod)]]","v":{"v":2222,"d":"2,222"}},{"$f":"tblPredaj[[#This Row],[Počet predaných jednotiek (maloobchod)]]*tblPredaj[[#This Row],[Jednotková maloobchodná cena]]+tblPredaj[[#This Row],[Počet predaných jednotiek (veľkoobchod)]]*tblPredaj[[#This Row],[Jednotková veľkoobchodná cena*]]","v":{"v":204424,"d":"204,424 €"}}]
[null,4,{"$f":"IFERROR(IF(tblPredaj[[#This Row],[Identifikácia produktu]]<>\"\",VLOOKUP(tblPredaj[Identifikácia produktu],tblProdukty[[Identifikácia produktu]:[Názov]],2,FALSE),\"\"),\"Neznáma identifikácia produktu\")","v":"Fľaše na vodu"},"2012-02-29",43,{"v":36,"d":"36 €"},952,{"v":1390,"d":"1,390"},{"$f":"tblPredaj[[#This Row],[Počet predaných jednotiek (maloobchod)]]+tblPredaj[[#This Row],[Počet predaných jednotiek (veľkoobchod)]]","v":{"v":2342,"d":"2,342"}},{"$f":"tblPredaj[[#This Row],[Počet predaných jednotiek (maloobchod)]]*tblPredaj[[#This Row],[Jednotková maloobchodná cena]]+tblPredaj[[#This Row],[Počet predaných jednotiek (veľkoobchod)]]*tblPredaj[[#This Row],[Jednotková veľkoobchodná cena*]]","v":{"v":90976,"d":"90,976 €"}}]
[null,5,{"$f":"IFERROR(IF(tblPredaj[[#This Row],[Identifikácia produktu]]<>\"\",VLOOKUP(tblPredaj[Identifikácia produktu],tblProdukty[[Identifikácia produktu]:[Názov]],2,FALSE),\"\"),\"Neznáma identifikácia produktu\")","v":"Šortky"},"2012-02-29",98,{"v":73,"d":"73 €"},530,{"v":1452,"d":"1,452"},{"$f":"tblPredaj[[#This Row],[Počet predaných jednotiek (maloobchod)]]+tblPredaj[[#This Row],[Počet predaných jednotiek (veľkoobchod)]]","v":{"v":1982,"d":"1,982"}},{"$f":"tblPredaj[[#This Row],[Počet predaných jednotiek (maloobchod)]]*tblPredaj[[#This Row],[Jednotková maloobchodná cena]]+tblPredaj[[#This Row],[Počet predaných jednotiek (veľkoobchod)]]*tblPredaj[[#This Row],[Jednotková veľkoobchodná cena*]]","v":{"v":157936,"d":"157,936 €"}}]
[null,1,{"$f":"IFERROR(IF(tblPredaj[[#This Row],[Identifikácia produktu]]<>\"\",VLOOKUP(tblPredaj[Identifikácia produktu],tblProdukty[[Identifikácia produktu]:[Názov]],2,FALSE),\"\"),\"Neznáma identifikácia produktu\")","v":"Košele"},"2012-03-31",38,{"v":28,"d":"28 €"},973,{"v":1415,"d":"1,415"},{"$f":"tblPredaj[[#This Row],[Počet predaných jednotiek (maloobchod)]]+tblPredaj[[#This Row],[Počet predaných jednotiek (veľkoobchod)]]","v":{"v":2388,"d":"2,388"}},{"$f":"tblPredaj[[#This Row],[Počet predaných jednotiek (maloobchod)]]*tblPredaj[[#This Row],[Jednotková maloobchodná cena]]+tblPredaj[[#This Row],[Počet predaných jednotiek (veľkoobchod)]]*tblPredaj[[#This Row],[Jednotková veľkoobchodná cena*]]","v":{"v":76594,"d":"76,594 €"}}]
[null,2,{"$f":"IFERROR(IF(tblPredaj[[#This Row],[Identifikácia produktu]]<>\"\",VLOOKUP(tblPredaj[Identifikácia produktu],tblProdukty[[Identifikácia produktu]:[Názov]],2,FALSE),\"\"),\"Neznáma identifikácia produktu\")","v":"Sandále"},"2012-03-31",50,{"v":36,"d":"36 €"},672,{"v":1105,"d":"1,105"},{"$f":"tblPredaj[[#This Row],[Počet predaných jednotiek (maloobchod)]]+tblPredaj[[#This Row],[Počet predaných jednotiek (veľkoobchod)]]","v":{"v":1777,"d":"1,777"}},{"$f":"tblPredaj[[#This Row],[Počet predaných jednotiek (maloobchod)]]*tblPredaj[[#This Row],[Jednotková maloobchodná cena]]+tblPredaj[[#This Row],[Počet predaných jednotiek (veľkoobchod)]]*tblPredaj[[#This Row],[Jednotková veľkoobchodná cena*]]","v":{"v":73380,"d":"73,380 €"}}]
[null,3,{"$f":"IFERROR(IF(tblPredaj[[#This Row],[Identifikácia produktu]]<>\"\",VLOOKUP(tblPredaj[Identifikácia produktu],tblProdukty[[Identifikácia produktu]:[Názov]],2,FALSE),\"\"),\"Neznáma identifikácia produktu\")","v":"Dáždniky"},"2012-03-31",24,{"v":23,"d":"23 €"},769,{"v":1629,"d":"1,629"},{"$f":"tblPredaj[[#This Row],[Počet predaných jednotiek (maloobchod)]]+tblPredaj[[#This Row],[Počet predaných jednotiek (veľkoobchod)]]","v":{"v":2398,"d":"2,398"}},{"$f":"tblPredaj[[#This Row],[Počet predaných jednotiek (maloobchod)]]*tblPredaj[[#This Row],[Jednotková maloobchodná cena]]+tblPredaj[[#This Row],[Počet predaných jednotiek (veľkoobchod)]]*tblPredaj[[#This Row],[Jednotková veľkoobchodná cena*]]","v":{"v":55923,"d":"55,923 €"}}]
[null,4,{"$f":"IFERROR(IF(tblPredaj[[#This Row],[Identifikácia produktu]]<>\"\",VLOOKUP(tblPredaj[Identifikácia produktu],tblProdukty[[Identifikácia produktu]:[Názov]],2,FALSE),\"\"),\"Neznáma identifikácia produktu\")","v":"Fľaše na vodu"},"2012-03-31",72,{"v":57,"d":"57 €"},985,{"v":1848,"d":"1,848"},{"$f":"tblPredaj[[#This Row],[Počet predaných jednotiek (maloobchod)]]+tblPredaj[[#This Row],[Počet predaných jednotiek (veľkoobchod)]]","v":{"v":2833,"d":"2,833"}},{"$f":"tblPredaj[[#This Row],[Počet predaných jednotiek (maloobchod)]]*tblPredaj[[#This Row],[Jednotková maloobchodná cena]]+tblPredaj[[#This Row],[Počet predaných jednotiek (veľkoobchod)]]*tblPredaj[[#This Row],[Jednotková veľkoobchodná cena*]]","v":{"v":176256,"d":"176,256 €"}}]
[null,5,{"$f":"IFERROR(IF(tblPredaj[[#This Row],[Identifikácia produktu]]<>\"\",VLOOKUP(tblPredaj[Identifikácia produktu],tblProdukty[[Identifikácia produktu]:[Názov]],2,FALSE),\"\"),\"Neznáma identifikácia produktu\")","v":"Šortky"},"2012-03-31",85,{"v":43,"d":"43 €"},721,{"v":1426,"d":"1,426"},{"$f":"tblPredaj[[#This Row],[Počet predaných jednotiek (maloobchod)]]+tblPredaj[[#This Row],[Počet predaných jednotiek (veľkoobchod)]]","v":{"v":2147,"d":"2,147"}},{"$f":"tblPredaj[[#This Row],[Počet predaných jednotiek (maloobchod)]]*tblPredaj[[#This Row],[Jednotková maloobchodná cena]]+tblPredaj[[#This Row],[Počet predaných jednotiek (veľkoobchod)]]*tblPredaj[[#This Row],[Jednotková veľkoobchodná cena*]]","v":{"v":122603,"d":"122,603 €"}}]
[null,1,{"$f":"IFERROR(IF(tblPredaj[[#This Row],[Identifikácia produktu]]<>\"\",VLOOKUP(tblPredaj[Identifikácia produktu],tblProdukty[[Identifikácia produktu]:[Názov]],2,FALSE),\"\"),\"Neznáma identifikácia produktu\")","v":"Košele"},"2012-04-30",91,{"v":65,"d":"65 €"},603,{"v":1226,"d":"1,226"},{"$f":"tblPredaj[[#This Row],[Počet predaných jednotiek (maloobchod)]]+tblPredaj[[#This Row],[Počet predaných jednotiek (veľkoobchod)]]","v":{"v":1829,"d":"1,829"}},{"$f":"tblPredaj[[#This Row],[Počet predaných jednotiek (maloobchod)]]*tblPredaj[[#This Row],[Jednotková maloobchodná cena]]+tblPredaj[[#This Row],[Počet predaných jednotiek (veľkoobchod)]]*tblPredaj[[#This Row],[Jednotková veľkoobchodná cena*]]","v":{"v":134563,"d":"134,563 €"}}]
[null,2,{"$f":"IFERROR(IF(tblPredaj[[#This Row],[Identifikácia produktu]]<>\"\",VLOOKUP(tblPredaj[Identifikácia produktu],tblProdukty[[Identifikácia produktu]:[Názov]],2,FALSE),\"\"),\"Neznáma identifikácia produktu\")","v":"Sandále"},"2012-04-30",91,{"v":55,"d":"55 €"},892,{"v":1823,"d":"1,823"},{"$f":"tblPredaj[[#This Row],[Počet predaných jednotiek (maloobchod)]]+tblPredaj[[#This Row],[Počet predaných jednotiek (veľkoobchod)]]","v":{"v":2715,"d":"2,715"}},{"$f":"tblPredaj[[#This Row],[Počet predaných jednotiek (maloobchod)]]*tblPredaj[[#This Row],[Jednotková maloobchodná cena]]+tblPredaj[[#This Row],[Počet predaných jednotiek (veľkoobchod)]]*tblPredaj[[#This Row],[Jednotková veľkoobchodná cena*]]","v":{"v":181437,"d":"181,437 €"}}]
[null,3,{"$f":"IFERROR(IF(tblPredaj[[#This Row],[Identifikácia produktu]]<>\"\",VLOOKUP(tblPredaj[Identifikácia produktu],tblProdukty[[Identifikácia produktu]:[Názov]],2,FALSE),\"\"),\"Neznáma identifikácia produktu\")","v":"Dáždniky"},"2012-04-30",42,{"v":42,"d":"42 €"},611,{"v":1181,"d":"1,181"},{"$f":"tblPredaj[[#This Row],[Počet predaných jednotiek (maloobchod)]]+tblPredaj[[#This Row],[Počet predaných jednotiek (veľkoobchod)]]","v":{"v":1792,"d":"1,792"}},{"$f":"tblPredaj[[#This Row],[Počet predaných jednotiek (maloobchod)]]*tblPredaj[[#This Row],[Jednotková maloobchodná cena]]+tblPredaj[[#This Row],[Počet predaných jednotiek (veľkoobchod)]]*tblPredaj[[#This Row],[Jednotková veľkoobchodná cena*]]","v":{"v":75264,"d":"75,264 €"}}]
[null,4,{"$f":"IFERROR(IF(tblPredaj[[#This Row],[Identifikácia produktu]]<>\"\",VLOOKUP(tblPredaj[Identifikácia produktu],tblProdukty[[Identifikácia produktu]:[Názov]],2,FALSE),\"\"),\"Neznáma identifikácia produktu\")","v":"Fľaše na vodu"},"2012-04-30",85,{"v":43,"d":"43 €"},530,{"v":1039,"d":"1,039"},{"$f":"tblPredaj[[#This Row],[Počet predaných jednotiek (maloobchod)]]+tblPredaj[[#This Row],[Počet predaných jednotiek (veľkoobchod)]]","v":{"v":1569,"d":"1,569"}},{"$f":"tblPredaj[[#This Row],[Počet predaných jednotiek (maloobchod)]]*tblPredaj[[#This Row],[Jednotková maloobchodná cena]]+tblPredaj[[#This Row],[Počet predaných jednotiek (veľkoobchod)]]*tblPredaj[[#This Row],[Jednotková veľkoobchodná cena*]]","v":{"v":89727,"d":"89,727 €"}}]
[null,5,{"$f":"IFERROR(IF(tblPredaj[[#This Row],[Identifikácia produktu]]<>\"\",VLOOKUP(tblPredaj[Identifikácia produktu],tblProdukty[[Identifikácia produktu]:[Názov]],2,FALSE),\"\"),\"Neznáma identifikácia produktu\")","v":"Šortky"},"2012-04-30",82,{"v":71,"d":"71 €"},716,{"v":1249,"d":"1,249"},{"$f":"tblPredaj[[#This Row],[Počet predaných jednotiek (maloobchod)]]+tblPredaj[[#This Row],[Počet predaných jednotiek (veľkoobchod)]]","v":{"v":1965,"d":"1,965"}},{"$f":"tblPredaj[[#This Row],[Počet predaných jednotiek (maloobchod)]]*tblPredaj[[#This Row],[Jednotková maloobchodná cena]]+tblPredaj[[#This Row],[Počet predaných jednotiek (veľkoobchod)]]*tblPredaj[[#This Row],[Jednotková veľkoobchodná cena*]]","v":{"v":147391,"d":"147,391 €"}}]
[null,1,{"$f":"IFERROR(IF(tblPredaj[[#This Row],[Identifikácia produktu]]<>\"\",VLOOKUP(tblPredaj[Identifikácia produktu],tblProdukty[[Identifikácia produktu]:[Názov]],2,FALSE),\"\"),\"Neznáma identifikácia produktu\")","v":"Košele"},"2012-05-14",34,{"v":31,"d":"31 €"},850,{"v":1548,"d":"1,548"},{"$f":"tblPredaj[[#This Row],[Počet predaných jednotiek (maloobchod)]]+tblPredaj[[#This Row],[Počet predaných jednotiek (veľkoobchod)]]","v":{"v":2398,"d":"2,398"}},{"$f":"tblPredaj[[#This Row],[Počet predaných jednotiek (maloobchod)]]*tblPredaj[[#This Row],[Jednotková maloobchodná cena]]+tblPredaj[[#This Row],[Počet predaných jednotiek (veľkoobchod)]]*tblPredaj[[#This Row],[Jednotková veľkoobchodná cena*]]","v":{"v":76888,"d":"76,888 €"}}]
[null,2,{"$f":"IFERROR(IF(tblPredaj[[#This Row],[Identifikácia produktu]]<>\"\",VLOOKUP(tblPredaj[Identifikácia produktu],tblProdukty[[Identifikácia produktu]:[Názov]],2,FALSE),\"\"),\"Neznáma identifikácia produktu\")","v":"Sandále"},"2012-05-14",64,{"v":40,"d":"40 €"},876,{"v":1663,"d":"1,663"},{"$f":"tblPredaj[[#This Row],[Počet predaných jednotiek (maloobchod)]]+tblPredaj[[#This Row],[Počet predaných jednotiek (veľkoobchod)]]","v":{"v":2539,"d":"2,539"}},{"$f":"tblPredaj[[#This Row],[Počet predaných jednotiek (maloobchod)]]*tblPredaj[[#This Row],[Jednotková maloobchodná cena]]+tblPredaj[[#This Row],[Počet predaných jednotiek (veľkoobchod)]]*tblPredaj[[#This Row],[Jednotková veľkoobchodná cena*]]","v":{"v":122584,"d":"122,584 €"}}]
[null,3,{"$f":"IFERROR(IF(tblPredaj[[#This Row],[Identifikácia produktu]]<>\"\",VLOOKUP(tblPredaj[Identifikácia produktu],tblProdukty[[Identifikácia produktu]:[Názov]],2,FALSE),\"\"),\"Neznáma identifikácia produktu\")","v":"Dáždniky"},"2012-05-14",33,{"v":30,"d":"30 €"},881,{"v":1149,"d":"1,149"},{"$f":"tblPredaj[[#This Row],[Počet predaných jednotiek (maloobchod)]]+tblPredaj[[#This Row],[Počet predaných jednotiek (veľkoobchod)]]","v":{"v":2030,"d":"2,030"}},{"$f":"tblPredaj[[#This Row],[Počet predaných jednotiek (maloobchod)]]*tblPredaj[[#This Row],[Jednotková maloobchodná cena]]+tblPredaj[[#This Row],[Počet predaných jednotiek (veľkoobchod)]]*tblPredaj[[#This Row],[Jednotková veľkoobchodná cena*]]","v":{"v":63543,"d":"63,543 €"}}]
[null,4,{"$f":"IFERROR(IF(tblPredaj[[#This Row],[Identifikácia produktu]]<>\"\",VLOOKUP(tblPredaj[Identifikácia produktu],tblProdukty[[Identifikácia produktu]:[Názov]],2,FALSE),\"\"),\"Neznáma identifikácia produktu\")","v":"Fľaše na vodu"},"2012-05-14",29,{"v":27,"d":"27 €"},802,{"v":1548,"d":"1,548"},{"$f":"tblPredaj[[#This Row],[Počet predaných jednotiek (maloobchod)]]+tblPredaj[[#This Row],[Počet predaných jednotiek (veľkoobchod)]]","v":{"v":2350,"d":"2,350"}},{"$f":"tblPredaj[[#This Row],[Počet predaných jednotiek (maloobchod)]]*tblPredaj[[#This Row],[Jednotková maloobchodná cena]]+tblPredaj[[#This Row],[Počet predaných jednotiek (veľkoobchod)]]*tblPredaj[[#This Row],[Jednotková veľkoobchodná cena*]]","v":{"v":65054,"d":"65,054 €"}}]
[null,5,{"$f":"IFERROR(IF(tblPredaj[[#This Row],[Identifikácia produktu]]<>\"\",VLOOKUP(tblPredaj[Identifikácia produktu],tblProdukty[[Identifikácia produktu]:[Názov]],2,FALSE),\"\"),\"Neznáma identifikácia produktu\")","v":"Šortky"},"2013-12-11",24,{"v":15,"d":"15 €"},824,{"v":1994,"d":"1,994"},{"$f":"tblPredaj[[#This Row],[Počet predaných jednotiek (maloobchod)]]+tblPredaj[[#This Row],[Počet predaných jednotiek (veľkoobchod)]]","v":{"v":2818,"d":"2,818"}},{"$f":"tblPredaj[[#This Row],[Počet predaných jednotiek (maloobchod)]]*tblPredaj[[#This Row],[Jednotková maloobchodná cena]]+tblPredaj[[#This Row],[Počet predaných jednotiek (veľkoobchod)]]*tblPredaj[[#This Row],[Jednotková veľkoobchodná cena*]]","v":{"v":49686,"d":"49,686 €"}}]

{"sheet":"Cenník","index":2,"n_rows":18,"n_cols":6,"rows_kept":18,"merged":[[15,1,15,5]]}
[null,"Cenník produktov"]
[]
[null,"Strojtech"]
[null,"Dubová 13"]
[null,"800 00  Bratislava"]
[null,"Telefón: (425) 555 0150"]
[null,"fax: (425) 555-0152"]
[null,"www.strojtech.com",{"$nulls":3},"Naposledy aktualizované 15. 8. 2013"]
[]
[null,"Identifikácia produktu","Názov","Popis","Jednotková maloobchodná cena","Jednotková veľkoobchodná cena*"]
[null,1,"Košele","Strávte leto štýlovo vďaka predzrážaným 100% bavlneným košeliam.",{"v":22,"d":"22 €"},{"v":15,"d":"15.00 €"}]
[null,2,"Sandále","V kvalitných gumených sandáloch nedáte horúcemu piesku žiadnu šancu.",{"v":10,"d":"10 €"},{"v":6,"d":"6.00 €"}]
[null,3,"Dáždniky","Chráňte sa pred slnkom pod extra veľkým slnečníkom, ktorý odráža 96 % škodlivého UV žiarenia.",{"v":30,"d":"30 €"},{"v":20,"d":"20.00 €"}]
[null,4,"Fľaše na vodu","V našich termoskách bude mať váš nápoj vždy správnu teplotu.",{"v":7,"d":"7 €"},{"v":5,"d":"5.00 €"}]
[null,5,"Šortky","Vďaka superrýchlo schnúcim šortkám ste raz-dva v suchu.",{"v":15,"d":"15 €"},{"v":8,"d":"8.00 €"}]
[]
[{"$nulls":5},"Ak položky nenájdete v zozname, kontaktujte nás."]
[{"$nulls":5},"*Veľkoobchodné ceny platia pre 12 a viac kusov."]

{"sheet":"Kontingenčná tabuľka cien","index":3,"n_rows":10,"n_cols":4,"rows_kept":10,"hidden":true,"merged":[[1,1,1,3]]}
[null,"Kontingenčná tabuľka cien"]
[null,"Tento hárok by mal zostať skrytý. Akékoľvek zmeny v nižšie uvedenej kontingenčnej tabuľke by mohli spôsobiť chybné zobrazenie údajov v zostave predaja produktov. "]
[null,"Vybratý produkt",{"$f":"IF(LEN(B5),B5,\"Žiadne\")","v":"Sandále"}]
[null,"Názov produktu","Jednotková maloobchodná cena","\nCelkový predaj (ks)"]
[null,"Sandále",{"v":38,"d":"38 €"},2464]
[null,null,{"v":50,"d":"50 €"},1777]
[null,null,{"v":64,"d":"64 €"},2539]
[null,null,{"v":70,"d":"70 €"},1787]
[null,null,{"v":83,"d":"83 €"},1758]
[null,null,{"v":91,"d":"91 €"},2715]

{"sheet":"Tabuľka trendov predaja","index":4,"n_rows":9,"n_cols":3,"rows_kept":9,"hidden":true,"merged":[[1,1,1,3]]}
[null,"Kontingenčná tabuľka trendov predaja"]
[null,"Tento hárok by mal zostať skrytý. Akékoľvek zmeny v nižšie uvedenej kontingenčnej tabuľke by mohli spôsobiť chybné zobrazenie údajov v zostave predaja produktov. "]
[null,"Celkový predaj (ks) ","Názov produktu"]
[null,"Cena k dátumu","Sandále"]
[null,"Jan",1787]
[null,"Feb",4222]
[null,"Mar",1777]
[null,"Máj",2539]
[null,"Apr",2715]